fUST/lending_fUST_20250408
["ID","MTS","AMOUNT","RATE_DAILY","PERIOD"]
[357429275,1744063907040,-500.0,0.00024109,2]
[357429276,1744063907050,-500.0,0.00024109,2]
[357429277,1744063907060,-500.0,0.00024109,2]
[357429278,1744063907070,-500.0,0.00024109,2]
[357429279,1744063907079,-2391.05,0.00024109,2]
[357429280,1744063907090,-1497.52,0.00024109,2]
[357429281,1744063907100,-500.0,0.00024109,2]
[357429282,1744063907111,-1082.74,0.00024109,2]
[357429283,1744063907121,-500.0,0.00024109,2]
[357429284,1744063907130,-651.9,0.00024109,2]
[357429285,1744063907140,-2766.76,0.00024109,2]
[357429286,1744063907150,-895.7,0.00024109,2]
[357429287,1744063907160,-572.77,0.00024109,2]
[357429288,1744063907170,-967.61,0.00024109,2]
[357429289,1744063907181,-2482.06,0.00024109,2]
[357429290,1744063907192,-1151.37,0.00024109,2]
[357429291,1744063907202,-2726.63,0.00024109,2]
[357429292,1744063907212,-646.66,0.00024109,2]
[357429293,1744063907222,-500.0,0.00024109,2]
[357429294,1744063907236,-500.0,0.00024109,2]
[357429295,1744063907246,-6139.74,0.00024109,2]
[357429296,1744063907256,-500.0,0.00024109,2]
[357429297,1744063907266,-4219.24,0.00024109,2]
[357429298,1744063907277,-629.38,0.00024109,2]
[357429299,1744063907287,-4760.8,0.00024109,2]
[357429300,1744063907297,-500.0,0.00024109,2]
[357429301,1744063907308,-500.0,0.00024109,2]
[357429302,1744063907318,-4549.61,0.00024109,2]
[357429303,1744063907328,-500.0,0.00024109,2]
[357429304,1744063907338,-500.0,0.00024109,2]
[357429305,1744063907349,-724.07,0.00024109,2]
[357429306,1744063907359,-11557.25,0.00024109,2]
[357429307,1744063907368,-2661.52,0.00024109,2]
[357429308,1744063907378,-500.0,0.00024109,2]
[357429309,1744063907387,-500.0,0.00024109,2]
[357429310,1744063907397,-3398.84,0.00024109,2]
[357429311,1744063907407,-263.58455995,0.00024109,2]
[357429312,1744063907416,-500.0,0.00024109,2]
[357429313,1744063907426,-508.86472611,0.00024109,2]
[357429314,1744063907436,-618.39,0.00024109,2]
[357429315,1744063907446,-500.0,0.00024109,2]
[357429316,1744063907456,-500.0,0.00024109,2]
[357429317,1744063907466,-569.1,0.00024109,2]
[357429318,1744063907475,-2313.7,0.00024109,2]
[357429319,1744063907484,-745.72,0.00024109,2]
[357429320,1744063907494,-500.0,0.00024109,2]
[357429321,1744063907504,-590.97,0.00024109,2]
[357429322,1744063907513,-3056.09,0.00024109,2]
[357429323,1744063907523,-500.0,0.00024109,2]
[357429324,1744063907533,-511.29861196,0.00024109,2]
[357429325,1744063907543,-3478.82,0.00024109,2]
[357429326,1744063907552,-500.0,0.00024109,2]
[357429327,1744063907561,-819.56,0.00024109,2]
[357429328,1744063907571,-500.0,0.00024109,2]
[357429329,1744063907580,-1068.57,0.00024109,2]
[357429330,1744063907589,-500.0,0.00024109,2]
[357429331,1744063907599,-621.56,0.00024109,2]
[357429332,1744063907609,-3744.49,0.00024109,2]
[357429333,1744063907618,-500.0,0.00024109,2]
[357429334,1744063907628,-500.0,0.00024109,2]
[357429335,1744063907638,-3303.4,0.00024109,2]
[357429336,1744063907648,-872.78,0.00024109,2]
[357429337,1744063907657,-500.0,0.00024109,2]
[357429338,1744063907666,-500.0,0.00024109,2]
[357429339,1744063907676,-575.54760736,0.00024109,2]
[357429340,1744063907686,-500.0,0.00024109,2]
[357429341,1744063907696,-6566.66,0.00024109,2]
[357429342,1744063907706,-591.38,0.00024109,2]
[357429343,1744063907715,-500.0,0.00024109,2]
[357429344,1744063907725,-3728.64,0.00024109,2]
[357429345,1744063907735,-4428.79,0.00024109,2]
[357429346,1744063907744,-615.78,0.00024109,2]
[357429347,1744063907753,-1390.87,0.00024109,2]
[357429348,1744063907763,-500.0,0.00024109,2]
[357429349,1744063907772,-890.23,0.00024109,2]
[357429350,1744063907782,-2219.7,0.00024109,2]
[357429351,1744063907791,-500.0,0.00024109,2]
[357429352,1744063907801,-500.0,0.00024109,2]
[357429353,1744063907810,-2090.85,0.00024109,2]
[357429354,1744063907820,-711.92,0.00024109,2]
[357429355,1744063907830,-500.0,0.00024109,2]
[357429356,1744063907841,-532.36,0.00024109,2]
[357429357,1744063907850,-1187.74,0.00024109,2]
[357429358,1744063907860,-500.0,0.00024109,2]
[357429359,1744063907869,-500.0,0.00024109,2]
[357429360,1744063907878,-500.0,0.00024109,2]
[357429361,1744063907888,-500.0,0.00024109,2]
[357429362,1744063907898,-1604.89,0.00024109,2]
[357429363,1744063907908,-531.62,0.00024109,2]
[357429364,1744063907917,-912.89,0.00024109,2]
[357429365,1744063907927,-500.0,0.00024109,2]
[357429366,1744063907936,-645.68,0.00024109,2]
[357429367,1744063907946,-500.0,0.00024109,2]
[357429368,1744063907955,-500.0,0.00024109,2]
[357429369,1744063907965,-1967.09,0.00024109,2]
[357429370,1744063907975,-1296.77,0.00024109,2]
[357429371,1744063907984,-932.59,0.00024109,2]
[357429372,1744063907994,-500.0,0.00024109,2]
[357429373,1744063908005,-500.0,0.00024109,2]
[357429374,1744063908014,-2553.91,0.00024109,2]
[357429375,1744063908024,-883.78,0.00024109,2]
[357429376,1744063908034,-500.0,0.00024109,2]
[357429377,1744063908044,-1780.77,0.00024109,2]
[357429378,1744063908054,-1311.59,0.00024109,2]
[357429379,1744063908063,-601.41,0.00024109,2]
[357429380,1744063908073,-2372.83,0.00024109,2]
[357429381,1744063908083,-882.05,0.00024109,2]
[357429382,1744063908092,-2990.05,0.00024109,2]
[357429383,1744063908101,-804.44,0.00024109,2]
[357429384,1744063908111,-778.69,0.00024109,2]
[357429385,1744063908120,-1614.29,0.00024109,2]
[357429386,1744063908129,-451.16564559,0.00024109,2]
[357429387,1744063908139,-534.61,0.00024109,2]
[357429388,1744063908148,-537.59,0.00024109,2]
[357429389,1744063908157,-500.0,0.00024109,2]
[357429390,1744063908166,-1541.32,0.00024109,2]
[357429391,1744063908176,-500.0,0.00024109,2]
[357429392,1744063908185,-3033.88,0.00024109,2]
[357429393,1744063908195,-500.0,0.00024109,2]
[357429394,1744063908206,-500.0,0.00024109,2]
[357429395,1744063908215,-549.68,0.00024109,2]
[357429396,1744063908224,-298.63299124,0.00024147,2]
[357429397,1744063908237,-826.9,0.00024383,2]
[357429398,1744063908246,-500.0,0.00024383,2]
[357429399,1744063908256,-500.0,0.00024383,2]
[357429400,1744063908266,-500.0,0.00024383,2]
[357429401,1744063908276,-500.0,0.00024383,2]
[357429402,1744063908285,-1072.12,0.00024383,2]
[357429403,1744063908295,-500.0,0.00024383,2]
[357429404,1744063908304,-500.0,0.00024383,2]
[357429405,1744063908314,-500.0,0.00024383,2]
[357429406,1744063908324,-500.0,0.00024383,2]
[357429407,1744063908333,-500.0,0.00024383,2]
[357429408,1744063908342,-637.37,0.00024383,2]
[357429409,1744063908352,-500.0,0.00024383,2]
[357429410,1744063908361,-795.37,0.00024383,2]
[357429411,1744063908370,-595.25690518,0.00024383,2]
[357429412,1744063908380,-681.95,0.00024383,2]
[357429413,1744063908389,-500.0,0.00024383,2]
[357429414,1744063908398,-701.4,0.00024383,2]
[357429415,1744063908407,-500.0,0.00024383,2]
[357429416,1744063908417,-284.90097032,0.00024383,2]
[357429417,1744063908578,-500.0,0.00024383,2]
[357429418,1744063908603,-500.0,0.00024383,2]
[357429419,1744063908613,-605.63,0.00024383,2]
[357429420,1744063908623,-635.58,0.00024383,2]
[357429421,1744063908633,-500.0,0.00024383,2]
[357429422,1744063908643,-618.83,0.00024383,2]
[357429423,1744063908652,-1319.58,0.00024383,2]
[357429424,1744063908662,-500.0,0.00024383,2]
[357429425,1744063908672,-586.14,0.00024383,2]
[357429426,1744063908682,-965.15,0.00024383,2]
[357429427,1744063908692,-500.0,0.00024383,2]
[357429428,1744063908702,-500.0,0.00024383,2]
[357429429,1744063908712,-1172.04,0.00024383,2]
[357429430,1744063908722,-500.0,0.00024383,2]
[357429431,1744063908732,-500.0,0.00024383,2]
[357429432,1744063908742,-509.93,0.00024383,2]
[357429433,1744063908752,-1010.05,0.00024383,2]
[357429434,1744063908762,-647.31,0.00024383,2]
[357429435,1744063908771,-500.0,0.00024383,2]
[357429436,1744063908781,-500.0,0.00024383,2]
[357429437,1744063908792,-683.72,0.00024383,2]
[357429438,1744063908802,-927.22,0.00024383,2]
[357429439,1744063908812,-500.0,0.00024383,2]
[357429440,1744063908823,-2388.74,0.00024383,2]
[357429441,1744063908833,-500.0,0.00024383,2]
[357429442,1744063908843,-500.0,0.00024383,2]
[357429443,1744063908852,-500.0,0.00024383,2]
[357429444,1744063908863,-500.0,0.00024383,2]
[357429445,1744063908873,-500.0,0.00024383,2]
[357429446,1744063908883,-500.0,0.00024383,2]
[357429447,1744063908893,-5151.25,0.00024383,2]
[357429448,1744063908903,-641.09,0.00024383,2]
[357429449,1744063908913,-500.0,0.00024383,2]
[357429450,1744063908922,-533.52622851,0.00024383,2]
[357429451,1744063908932,-500.0,0.00024383,2]
[357429452,1744063908942,-1515.42,0.00024383,2]
[357429453,1744063908953,-500.0,0.00024383,2]
[357429454,1744063908963,-1223.9,0.00024383,2]
[357429455,1744063908974,-972.05,0.00024383,2]
[357429456,1744063908984,-500.0,0.00024383,2]
[357429457,1744063908994,-1029.9,0.00024383,2]
[357429458,1744063909004,-710.69,0.00024383,2]
[357429459,1744063909014,-500.0,0.00024383,2]
[357429460,1744063909024,-514.93,0.00024383,2]
[357429461,1744063909034,-500.0,0.00024383,2]
[357429462,1744063909044,-500.0,0.00024383,2]
[357429463,1744063909054,-500.0,0.00024383,2]
[357429464,1744063909064,-500.0,0.00024383,2]
[357429465,1744063909074,-630.65,0.00024383,2]
[357429466,1744063909083,-500.0,0.00024383,2]
[357429467,1744063909093,-500.0,0.00024383,2]
[357429468,1744063909102,-500.0,0.00024383,2]
[357429469,1744063909112,-500.0,0.00024383,2]
[357429470,1744063909123,-1716.22,0.00024383,2]
[357429471,1744063909132,-601.19,0.00024383,2]
[357429472,1744063909142,-1677.61,0.00024383,2]
[357429473,1744063909152,-500.0,0.00024383,2]
[357429474,1744063909162,-526.01,0.00024383,2]
[357429475,1744063909172,-1206.67,0.00024383,2]
[357429476,1744063909182,-500.0,0.00024383,2]
[357429477,1744063909192,-500.0,0.00024383,2]
[357429478,1744063909201,-500.0,0.00024383,2]
[357429479,1744063909212,-500.0,0.00024383,2]
[357429480,1744063909222,-200.0,0.00024383,2]
[357429481,1744063909235,-631.76,0.00024383,2]
[357429482,1744063909245,-1866.81,0.00024383,2]
[357429483,1744063909255,-876.5,0.00024383,2]
[357429484,1744063909266,-500.0,0.00024383,2]
[357429485,1744063909276,-711.58,0.00024383,2]
[357429486,1744063909286,-775.52,0.00024383,2]
[357429487,1744063909297,-731.46,0.00024383,2]
[357429488,1744063909307,-500.0,0.00024383,2]
[357429489,1744063909318,-578.19,0.00024383,2]
[357429490,1744063909328,-1407.84,0.00024383,2]
[357429491,1744063909338,-500.0,0.00024383,2]
[357429492,1744063909352,-500.0,0.00024383,2]
[357429493,1744063909362,-500.0,0.00024383,2]
[357429494,1744063909372,-673.31,0.00024383,2]
[357429495,1744063909383,-860.82,0.00024383,2]
[357429496,1744063909394,-500.0,0.00024383,2]
[357429497,1744063909403,-584.63,0.00024383,2]
[357429498,1744063909413,-500.0,0.00024383,2]
[357429499,1744063909423,-875.61,0.00024383,2]
[357429500,1744063909432,-500.0,0.00024383,2]
[357429501,1744063909442,-500.0,0.00024383,2]
[357429502,1744063909452,-501.31,0.00024383,2]
[357429503,1744063909461,-500.0,0.00024383,2]
[357429504,1744063909471,-500.0,0.00024383,2]
[357429505,1744063909481,-1137.86,0.00024383,2]
[357429506,1744063909490,-724.96,0.00024383,2]
[357429507,1744063909500,-560.96,0.00024383,2]
[357429508,1744063909509,-500.0,0.00024383,2]
[357429509,1744063909519,-1851.71,0.00024383,2]
[357429510,1744063909529,-500.0,0.00024383,2]
[357429511,1744063909539,-500.0,0.00024383,2]
[357429512,1744063909549,-500.0,0.00024383,2]
[357429513,1744063909559,-992.11,0.00024383,2]
[357429514,1744063909569,-1076.39,0.00024383,2]
[357429515,1744063909579,-616.93,0.00024383,2]
[357429516,1744063909588,-500.0,0.00024383,2]
[357429517,1744063909597,-2026.48,0.00024383,2]
[357429518,1744063909607,-953.83,0.00024383,2]
[357429519,1744063909617,-500.0,0.00024383,2]
[357429520,1744063909627,-500.0,0.00024383,2]
[357429521,1744063909637,-500.0,0.00024383,2]
[357429522,1744063909647,-2969.41,0.00024383,2]
[357429523,1744063909657,-519.65,0.00024383,2]
[357429524,1744063909667,-2444.99,0.00024383,2]
[357429525,1744063909676,-500.0,0.00024383,2]
[357429526,1744063909686,-1097.58,0.00024383,2]
[357429527,1744063909696,-500.0,0.00024383,2]
[357429528,1744063909706,-976.7,0.00024383,2]
[357429529,1744063909716,-500.0,0.00024383,2]
[357429530,1744063909726,-1051.44,0.00024383,2]
[357429531,1744063909736,-500.0,0.00024383,2]
[357429532,1744063909745,-540.47,0.00024383,2]
[357429533,1744063909756,-543.21,0.00024383,2]
[357429534,1744063909767,-668.11,0.00024383,2]
[357429535,1744063909777,-853.08,0.00024383,2]
[357429536,1744063909786,-1262.71,0.00024383,2]
[357429537,1744063909796,-2569.27,0.00024383,2]
[357429538,1744063909805,-500.0,0.00024383,2]
[357429539,1744063909815,-1733.23,0.00024383,2]
[357429540,1744063909825,-893.36,0.00024383,2]
[357429541,1744063909835,-2016.49,0.00024383,2]
[357429542,1744063909845,-1152.06,0.00024383,2]
[357429543,1744063909855,-533.72326781,0.00024383,2]
[357429544,1744063909866,-552.64,0.00024383,2]
[357429545,1744063909876,-18581.5,0.00024383,2]
[357429546,1744063909886,-500.0,0.00024383,2]
[357429547,1744063909896,-2267.89,0.00024383,2]
[357429548,1744063909906,-4269.8,0.00024383,2]
[357429549,1744063909921,-500.0,0.00024383,2]
[357429550,1744063909931,-1821.78,0.00024383,2]
[357429551,1744063909941,-703.14,0.00024383,2]
[357429552,1744063909951,-998.23,0.00024383,2]
[357429553,1744063909961,-2845.59,0.00024383,2]
[357429554,1744063909971,-500.0,0.00024383,2]
[357429555,1744063909981,-3675.16,0.00024383,2]
[357429556,1744063909991,-925.05,0.00024383,2]
[357429557,1744063910000,-544.04,0.00024383,2]
[357429558,1744063910011,-436.18353772,0.00024383,2]
[357429559,1744063910021,-500.0,0.00024383,2]
[357429560,1744063910044,-500.0,0.00024383,2]
[357429561,1744063910065,-500.0,0.00024383,2]
[357429562,1744063910086,-500.0,0.00024383,2]
[357429563,1744063910105,-1424.89,0.00024383,2]
[357429564,1744063910125,-500.0,0.00024383,2]
[357429565,1744063910145,-665.06,0.00024383,2]
[357429566,1744063910163,-500.0,0.00024383,2]
[357429567,1744063910180,-500.0,0.00024383,2]
[357429568,1744063910200,-500.0,0.00024383,2]
[357429569,1744063910218,-545.95,0.00024383,2]
[357429570,1744063910238,-500.0,0.00024383,2]
[357429571,1744063910254,-500.0,0.00024383,2]
[357429572,1744063910274,-500.0,0.00024383,2]
[357429573,1744063910294,-500.0,0.00024383,2]
[357429574,1744063910317,-2391.05,0.00024383,2]
[357429575,1744063910332,-1497.52,0.00024383,2]
[357429576,1744063910348,-515.94430836,0.00024383,2]
[357429577,1744063910369,-1082.74,0.00024383,2]
[357429578,1744063910384,-500.0,0.00024383,2]
[357429579,1744063910402,-651.9,0.00024383,2]
[357429580,1744063910418,-2766.76,0.00024383,2]
[357429581,1744063910434,-895.7,0.00024383,2]
[357429582,1744063910448,-572.77,0.00024383,2]
[357429583,1744063910467,-967.61,0.00024383,2]
[357429584,1744063910482,-2482.06,0.00024383,2]
[357429585,1744063910497,-1151.37,0.00024383,2]
[357429586,1744063910512,-2726.63,0.00024383,2]
[357429587,1744063910526,-646.66,0.00024383,2]
[357429588,1744063910541,-500.0,0.00024383,2]
[357429589,1744063910557,-500.0,0.00024383,2]
[357429590,1744063910574,-6139.74,0.00024383,2]
[357429591,1744063910589,-520.95958652,0.00024383,2]
[357429592,1744063910603,-4219.24,0.00024383,2]
[357429593,1744063910619,-629.38,0.00024383,2]
[357429594,1744063910635,-500.0,0.00024383,2]
[357429595,1744063910651,-4760.8,0.00024383,2]
[357429596,1744063910666,-500.0,0.00024383,2]
[357429597,1744063910680,-4549.61,0.00024383,2]
[357429598,1744063910695,-500.0,0.00024383,2]
[357429599,1744063910710,-500.0,0.00024383,2]
[357429600,1744063910726,-724.07,0.00024383,2]
[357429601,1744063910741,-11557.25,0.00024383,2]
[357429602,1744063910756,-2661.52,0.00024383,2]
[357429603,1744063910770,-500.0,0.00024383,2]
[357429604,1744063910785,-500.0,0.00024383,2]
[357429605,1744063910801,-3398.84,0.00024383,2]
[357429606,1744063910817,-500.0,0.00024383,2]
[357429607,1744063910833,-618.39,0.00024383,2]
[357429608,1744063910847,-500.0,0.00024383,2]
[357429609,1744063910862,-500.0,0.00024383,2]
[357429610,1744063910876,-569.1,0.00024383,2]
[357429611,1744063910890,-2313.7,0.00024383,2]
[357429612,1744063910905,-745.72,0.00024383,2]
[357429613,1744063910920,-500.0,0.00024383,2]
[357429614,1744063910935,-590.97,0.00024383,2]
[357429615,1744063910949,-3056.09,0.00024383,2]
[357429616,1744063910963,-500.0,0.00024383,2]
[357429617,1744063910979,-3478.82,0.00024383,2]
[357429618,1744063910994,-500.0,0.00024383,2]
[357429619,1744063911009,-819.56,0.00024383,2]
[357429620,1744063911027,-524.76122463,0.00024383,2]
[357429621,1744063911042,-1068.57,0.00024383,2]
[357429622,1744063911059,-500.0,0.00024383,2]
[357429623,1744063911077,-621.56,0.00024383,2]
[357429624,1744063911093,-514.23872698,0.00024383,2]
[357429625,1744063911110,-3744.49,0.00024383,2]
[357429626,1744063911124,-221.66394019,0.00024383,2]
[357429627,1744063911139,-3303.4,0.00024383,2]
[357429628,1744063911155,-872.78,0.00024383,2]
[357429629,1744063911170,-500.0,0.00024383,2]
[357429630,1744063911185,-500.0,0.00024383,2]
[357429631,1744063911200,-500.0,0.00024383,2]
[357429632,1744063911216,-6566.66,0.00024383,2]
[357429633,1744063911233,-591.38,0.00024383,2]
[357429634,1744063911248,-532.5262024,0.00024383,2]
[357429635,1744063911263,-3728.64,0.00024383,2]
[357429636,1744063911278,-4428.79,0.00024383,2]
[357429637,1744063911293,-615.78,0.00024383,2]
[357429638,1744063911310,-1390.87,0.00024383,2]
[357429639,1744063911326,-500.0,0.00024383,2]
[357429640,1744063911340,-890.23,0.00024383,2]
[357429641,1744063911355,-2219.7,0.00024383,2]
[357429642,1744063911369,-500.0,0.00024383,2]
[357429643,1744063911384,-500.0,0.00024383,2]
[357429644,1744063911400,-2090.85,0.00024383,2]
[357429645,1744063911415,-711.92,0.00024383,2]
[357429646,1744063911430,-500.0,0.00024383,2]
[357429647,1744063911446,-532.36,0.00024383,2]
[357429648,1744063911460,-1187.74,0.00024383,2]
[357429649,1744063911476,-500.0,0.00024383,2]
[357429650,1744063911491,-161.12747172,0.00024383,2]
[357429651,1744063911506,-500.0,0.00024383,2]
[357429652,1744063911521,-500.0,0.00024383,2]
[357429653,1744063911536,-1604.89,0.00024383,2]
[357429654,1744063911551,-531.62,0.00024383,2]
[357429655,1744063911567,-912.89,0.00024383,2]
[357429656,1744063911582,-500.0,0.00024383,2]
[357429657,1744063911597,-645.68,0.00024383,2]
[357429658,1744063911611,-500.0,0.00024383,2]
[357429659,1744063911626,-500.0,0.00024383,2]
[357429660,1744063911641,-1967.09,0.00024383,2]
[357429661,1744063911656,-1296.77,0.00024383,2]
[357429662,1744063911670,-932.59,0.00024383,2]
[357429663,1744063911686,-500.0,0.00024383,2]
[357429664,1744063911702,-2553.91,0.00024383,2]
[357429665,1744063911717,-500.0,0.00024383,2]
[357429666,1744063911731,-883.78,0.00024383,2]
[357429667,1744063911746,-500.0,0.00024383,2]
[357429668,1744063911762,-1780.77,0.00024383,2]
[357429669,1744063911777,-1311.59,0.00024383,2]
[357429670,1744063911792,-601.41,0.00024383,2]
[357429671,1744063911807,-2372.83,0.00024383,2]
[357429672,1744063911821,-882.05,0.00024383,2]
[357429673,1744063911837,-2990.05,0.00024383,2]
[357429674,1744063911853,-778.69,0.00024383,2]
[357429675,1744063911870,-1614.29,0.00024383,2]
[357429676,1744063911884,-534.61,0.00024383,2]
[357429677,1744063911900,-804.44,0.00024383,2]
[357429678,1744063911917,-537.59,0.00024383,2]
[357429679,1744063911932,-500.0,0.00024383,2]
[357429680,1744063911948,-1541.32,0.00024383,2]
[357429681,1744063911963,-500.0,0.00024383,2]
[357429682,1744063911978,-3033.88,0.00024383,2]
[357429683,1744063911993,-500.0,0.00024383,2]
[357429684,1744063912007,-500.0,0.00024383,2]
[357429685,1744063912022,-4441.88334103,0.00024486,5]
[357429686,1744063912036,-198.11613066,0.00024642,2]
[357429687,1744063912051,-215.0738,0.00024642,2]
[357429688,1744063912066,-826.9,0.00024657,2]
[357429689,1744063912081,-500.0,0.00024657,2]
[357429690,1744063912097,-500.0,0.00024657,2]
[357429691,1744063912111,-500.0,0.00024657,2]
[357429692,1744063912125,-500.0,0.00024657,2]
[357429693,1744063912144,-1072.12,0.00024657,2]
[357429694,1744063912157,-515.7258946,0.00024657,2]
[357429695,1744063912172,-500.0,0.00024657,2]
[357429696,1744063912186,-500.0,0.00024657,2]
[357429697,1744063912200,-500.0,0.00024657,2]
[357429698,1744063912216,-500.0,0.00024657,2]
[357429699,1744063912232,-637.37,0.00024657,2]
[357429700,1744063912564,-500.0,0.00024657,2]
[357429701,1744063912592,-795.37,0.00024657,2]
[357429702,1744063912602,-681.95,0.00024657,2]
[357429703,1744063912612,-500.0,0.00024657,2]
[357429704,1744063912623,-701.4,0.00024657,2]
[357429705,1744063912632,-500.0,0.00024657,2]
[357429706,1744063912642,-500.0,0.00024657,2]
[357429707,1744063912652,-500.0,0.00024657,2]
[357429708,1744063912662,-605.63,0.00024657,2]
[357429709,1744063912672,-635.58,0.00024657,2]
[357429710,1744063912682,-500.0,0.00024657,2]
[357429711,1744063912692,-618.83,0.00024657,2]
[357429712,1744063912702,-1319.58,0.00024657,2]
[357429713,1744063912712,-500.0,0.00024657,2]
[357429714,1744063912722,-586.14,0.00024657,2]
[357429715,1744063912732,-965.15,0.00024657,2]
[357429716,1744063912742,-530.02859531,0.00024657,2]
[357429717,1744063912751,-500.0,0.00024657,2]
[357429718,1744063912761,-1172.04,0.00024657,2]
[357429719,1744063912771,-500.0,0.00024657,2]
[357429720,1744063912781,-500.0,0.00024657,2]
[357429721,1744063912790,-509.93,0.00024657,2]
[357429722,1744063912800,-1010.05,0.00024657,2]
[357429723,1744063912810,-647.31,0.00024657,2]
[357429724,1744063912822,-500.0,0.00024657,2]
[357429725,1744063912831,-500.0,0.00024657,2]
[357429726,1744063912841,-683.72,0.00024657,2]
[357429727,1744063912851,-927.22,0.00024657,2]
[357429728,1744063912860,-500.0,0.00024657,2]
[357429729,1744063912870,-2388.74,0.00024657,2]
[357429730,1744063912880,-500.0,0.00024657,2]
[357429731,1744063912890,-500.0,0.00024657,2]
[357429732,1744063912901,-500.0,0.00024657,2]
[357429733,1744063912911,-500.0,0.00024657,2]
[357429734,1744063912922,-500.0,0.00024657,2]
[357429735,1744063912931,-5151.25,0.00024657,2]
[357429736,1744063912941,-641.09,0.00024657,2]
[357429737,1744063912950,-500.0,0.00024657,2]
[357429738,1744063912960,-500.0,0.00024657,2]
[357429739,1744063912970,-1515.42,0.00024657,2]
[357429740,1744063912981,-500.0,0.00024657,2]
[357429741,1744063912991,-1223.9,0.00024657,2]
[357429742,1744063913002,-972.05,0.00024657,2]
[357429743,1744063913013,-500.0,0.00024657,2]
[357429744,1744063913024,-1029.9,0.00024657,2]
[357429745,1744063913035,-710.69,0.00024657,2]
[357429746,1744063913047,-500.0,0.00024657,2]
[357429747,1744063913058,-514.93,0.00024657,2]
[357429748,1744063913068,-500.0,0.00024657,2]
[357429749,1744063913079,-500.0,0.00024657,2]
[357429750,1744063913090,-500.0,0.00024657,2]
[357429751,1744063913100,-500.0,0.00024657,2]
[357429752,1744063913111,-630.65,0.00024657,2]
[357429753,1744063913122,-200.0,0.00024657,2]
[357429754,1744063913132,-500.0,0.00024657,2]
[357429755,1744063913143,-329.71995035,0.00024657,2]
[357429756,1744063913153,-500.0,0.00024657,2]
[357429757,1744063913164,-500.0,0.00024657,2]
[357429758,1744063913174,-500.0,0.00024657,2]
[357429759,1744063913185,-500.0,0.00024657,2]
[357429760,1744063913195,-500.0,0.00024657,2]
[357429761,1744063913205,-500.0,0.00024657,2]
[357429762,1744063913215,-500.0,0.00024657,2]
[357429763,1744063913226,-500.0,0.00024657,2]
[357429764,1744063913241,-500.0,0.00024657,2]
[357429765,1744063913252,-500.0,0.00024657,2]
[357429766,1744063913261,-500.0,0.00024657,2]
[357429767,1744063913272,-500.0,0.00024657,2]
[357429768,1744063913281,-500.0,0.00024657,2]
[357429769,1744063913291,-1716.22,0.00024657,2]
[357429770,1744063913302,-601.19,0.00024657,2]
[357429771,1744063913313,-1677.61,0.00024657,2]
[357429772,1744063913324,-500.0,0.00024657,2]
[357429773,1744063913334,-526.01,0.00024657,2]
[357429774,1744063913343,-1206.67,0.00024657,2]